{"text_format":"1","workbook":"xlsx","n_sheets":4,"sheets":["OPĆI DIO","PLAN PRIHODA","PLAN RASHODA I IZDATAKA","OBRAZLOŽENJE"],"not_rendered":{"charts":0,"images":0,"macros":0,"external_links":0,"defined_names":5,"comments":0,"pivot_tables":0},"unopened":[],"bounds":{"document_bytes":16777216,"sheet_cells":100000,"rows_first":2000,"rows_last":500,"rows_between":2000,"halvings":0,"cell_chars":16384,"cell_head_chars":4096},"cells_cut":0,"cells_raw":0,"read":"whole","date_system":"1900"}

{"sheet":"OPĆI DIO","index":0,"n_rows":22,"n_cols":8,"rows_kept":22,"cut":false,"hidden":false,"merged":[[11,0,11,4],[6,0,6,4],[0,0,0,7],[1,0,1,7],[2,0,2,7],[7,0,7,4],[9,0,9,4],[10,0,10,4],[5,0,5,4],[12,0,12,7],[21,0,21,4],[17,0,17,4],[18,0,18,4],[19,0,19,4],[14,0,14,4],[15,0,15,7]]}
[" FINANCIJSKI PLAN OŠ VUGROVEC - KAŠINA  ZA 2016. I                                                                                                                                                PROJEKCIJA PLANA ZA  2017. I 2018. GODINU"]
["OPĆI DIO"]
[]
[]
[null,null,null,null,null,"Prijedlog plana \nza 2016.","Projekcija plana\nza 2017.","Projekcija plana \nza 2018."]
["PRIHODI UKUPNO",null,null,null,null,3319040,3392997,3397261]
["PRIHODI POSLOVANJA"]
["PRIHODI OD NEFINANCIJSKE IMOVINE"]
["RASHODI UKUPNO",null,null,null,null,3319040,3392997,3397261]
["RASHODI  POSLOVANJA"]
["RASHODI ZA NEFINANCIJSKU IMOVINU"]
["RAZLIKA - VIŠAK / MANJAK",null,null,null,null,{"$f":"+F6-F9","v":0},{"$f":"+G6-G9","v":0},{"$f":"+H6-H9","v":0}]
[]
[null,null,null,null,null,"Prijedlog plana \nza 2015.","Projekcija plana\nza 2016.","Projekcija plana \nza 2017."]
["VIŠAK/MANJAK IZ PRETHODNE GODINE",null,null,null,null,0,0,0]
[]
[null,null,null,null,null,"Prijedlog plana \nza 2015.","Projekcija plana\nza 2016.","Projekcija plana \nza 2017."]
["PRIMICI OD FINANCIJSKE IMOVINE I ZADUŽIVANJA"]
["IZDACI ZA FINANCIJSKU IMOVINU I OTPLATE ZAJMOVA"]
["NETO FINANCIRANJE"]
[]
["VIŠAK / MANJAK + NETO FINANCIRANJE",null,null,null,null,{"$f":"SUM(F12,F15,F20)","v":0},{"$f":"SUM(G12,G15,G20)","v":0},{"$f":"SUM(H12,H15,H20)","v":0}]

{"sheet":"PLAN PRIHODA","index":1,"n_rows":43,"n_cols":8,"rows_kept":43,"cut":false,"hidden":false,"merged":[[154,0,154,4],[2,1,2,7],[42,1,42,7],[0,0,0,7],[14,1,14,7],[16,1,16,7],[28,1,28,7],[30,1,30,7]]}
["PLAN PRIHODA I PRIMITAKA"]
[null,null,null,null,null,null,null,"u kunama"]
["Izvor prihoda i primitaka","2016."]
["Oznaka                           rač.iz                                      računskog                                         plana","Opći prihodi i primici","Vlastiti prihodi","Prihodi za posebne namjene","Pomoći","Donacije ","Prihodi od nefinancijske imovine i nadoknade šteta s osnova osiguranja","Namjenski primici od zaduživanja"]
[652,null,0,340000]
[661]
[671,2954040]
[661,null,25000]
[671]
[]
[]
[]
[]
["Ukupno (po izvorima)",2954040,25000,{"$f":"D5","v":340000},0,{"$f":"+F6","v":0},0,0]
["Ukupno prihodi i primici za 2016.",{"$f":"B14+C14+D14+E14+F14+G14+H14","v":3319040}]
[]
["Izvor prihoda i primitaka","2017."]
["Oznaka                           rač.iz                                      računskog                                         plana","Opći prihodi i primici","Vlastiti prihodi","Prihodi za posebne namjene","Pomoći","Donacije ","Prihodi od nefinancijske imovine i nadoknade šteta s osnova osiguranja","Namjenski primici od zaduživanja"]
[652,null,null,350000]
[663]
[671,3012997]
[661,null,30000]
[]
[]
[]
[]
[]
["Ukupno (po izvorima)",3012997,30000,350000,0,{"$f":"+F20","v":0},0,0]
["Ukupno prihodi i primici za 2017.",{"$f":"B28+C28+D28+E28+F28+G28+H28","v":3392997}]
[]
["Izvor prihoda i primitaka","2018."]
["Oznaka                           rač.iz                                      računskog                                         plana","Opći prihodi i primici","Vlastiti prihodi","Prihodi za posebne namjene","Pomoći","Donacije ","Prihodi od nefinancijske imovine i nadoknade šteta s osnova osiguranja","Namjenski primici od zaduživanja"]
[652,null,null,350000]
[663]
[671,3017261]
[661,null,30000]
[]
[]
[]
[]
[]
["Ukupno (po izvorima)",3017261,30000,350000,0,{"$f":"+F34","v":0},0,0]
["Ukupno prihodi i primici za 2018.",{"$f":"B42+C42+D42+E42+F42+G42+H42","v":3397261}]

{"sheet":"PLAN RASHODA I IZDATAKA","index":2,"n_rows":85,"n_cols":12,"rows_kept":85,"cut":false,"hidden":false,"merged":[[9,0,9,1],[81,8,81,11],[84,8,84,11],[0,10,0,11],[1,0,1,11],[6,10,6,11]]}
[null,null,null,null,null,null,null,null,null,null,"Obrazac FIN. PL.-OŠ"]
["PLAN RASHODA I IZDATAKA 2016.-2018."]
[]
["Korisnik proračuna-OŠ:VUGROVEC - KAŠINA"]
["Kontak osoba:Nada Milec"]
["Tel:2059-256, 2055-035"]
[null,null,null,null,null,null,null,null,null,null,"u kunama"]
["Šifra","Naziv","PRIJEDLOG PLANA ZA 2016.                               (kol.  4+5+6+7+8+9+10)","Opći prihodi i primici","Vlastiti prihodi","Prihodi za posebne namjene","Pomoći","Donacije","Prihodi od nefinancijske imovine i nadoknade šteta s osnova osiguranja","Namjenski primici od zaduživanja","PROJEKCIJA PLANA ZA 2017.","PROJEKCIJA PLANA ZA 2018."]
[1,2,3,4,5,6,7,8,9,10,11,12]
["Program 1001. DECENTRALIZIRANA SREDSTVA ZA OSNOVNO ŠKOLSTVO",null,{"$f":"C11","v":1249440},{"$f":"D11","v":1219440},20000,10000,0,0,0,0,1256937,1258822]
[null,"Aktivnost 100001. REDOVNA DJELATNOST OSNOVNIH ŠKOLA",{"$f":"SUM(C12,C32,C36)","v":1249440},{"$f":"SUM(D12,D32,D36)","v":1219440},20000,10000,0,0,0,0,1256937,1258822]
[32,"Materijalni rashodi",{"$f":"SUM(C13:C31)","v":1243440},{"$f":"SUM(D13:D31)","v":1213440},20000,10000,0,0,0,0,1250901,1252777]
["3211","Službena putovanja",25000,15000,null,10000,null,null,null,null,1250901,1252777]
["3213","Stručno usavršavanje zaposlenika",18000,18000]
["3221","Uredski materijali i ostali materijalni rashodi",150000,150000]
["3223","Energija",700000,700000]
["3224","Materijal i dijelovi za tekuće investicijsko održavanje",50000,30000,20000]
["3225","Sitni inventar i auto gume",25800,25800]
["3231","Usluge telefona, pošte i prijevoza",36000,36000]
["3232","Usluge tekućeg i investicijskog održavanja",22000,22000,0]
["3233","Usluge promidžbe i informiranja",8000,8000]
["3234","Komunalne usluge",130000,130000]
["3235","Zakupnine i najamnine"]
["3236","Zdravstvene i veterinarske usluge",42000,42000]
["3237","Intelektualne i osobne usluge",5000,5000]
["3238","Računalne usluge",10940,10940]
["3239","Ostale usluge",2000,2000]
["3292","Premije osiguranja",6700,6700]
["3293","Reprezentacija",3000,3000]
["3294","Članarine",1000,1000]
["3299","Ostali nespomenuti rashodi poslovanja",8000,8000]
[34,"Financijski rashodi",{"$f":"SUM(C33:C35)","v":6000},{"$f":"SUM(D33:D35)","v":6000},0,0,0,0,0,0,6036,6045]
["3431","Bankarske usluge i usluge platnog prometa",4500,4500,null,null,null,null,null,null,4527,4534]
["3433","Zatezne kamate",1500,1500,null,null,null,null,null,null,1509,1511]
["3434","Ostali nespomenuti financijski rashodi"]
[null,"Projekt K100002. ODRŽAVANJE I OPREMANJE OSNOVNIH ŠKOLA",{"$f":"C37","v":0},{"$f":"D37","v":0},0,0,0,0,0,0,0,0]
[42,"Rashodi za nabavu proizvedene dugotrajne imovine",{"$f":"C38","v":0},0,0,0,0,0,0,0,0,0]
["4212","Poslovni objekti"]
["Program 1002. POJAČANI STANDARD U OSNOVNOM ŠKOLSTVU",null,{"$f":"SUM(C40,C47,C50,C53,C56,C60,C63,C66,C69,C72)","v":2069600},{"$f":"SUM(D40,D47,D50,D53,D56,D60,D63,D66,D69,D72)","v":1734600},5000,330000,0,0,0,0,2136060,2138439]
[null,"Aktivnost A100001. PRODUŽENI BORAVAK",{"$f":"C41","v":459600},459600,0,0,0,0,0,0,519700,520479]
[31,"Rashodi za zaposlene",{"$f":"SUM(C42:C46)","v":459600},{"$f":"SUM(D42:D46)","v":459600},0,0,0,0,0,0,519700,520479]
["3111","Plaće za redovan rad",393600,393600]
["3121","Ostali rashodi za zaposlene",null,null,null,null,null,null,null,null,462358,463051]
["3132","Doprinos za obvezno zdravstveno osiguranje",50000,50000]
["3133","Doprinos za obvezno osiguranje u slučaju nezaposlenosti",7000,7000,null,null,null,null,null,null,50300,50375]
["3212","Naknade za prijevoz, za rad na terenu i odvojeni život",9000,9000,null,null,null,null,null,null,7042,7053]
[null,"Aktivnost A100003. DONACIJE PRIVATNIM OSNOVNIM ŠKOLAMA",{"$f":"C48","v":0},{"$f":"D48","v":0},0,0,0,0,0,0,0,0]
[38,"Ostali rashodi",{"$f":"C49","v":0},0,0,0,0,0,0,0,0,0]
["3811","Tekuće donacije u novcu"]
[null,"Aktivnost A100004. SUFINANCIRANJE PREHRANE",{"$f":"C51","v":600000},{"$f":"D51","v":300000},0,300000,0,0,0,0,603600,604505]
[32,"Materijalni rashodi",{"$f":"C52","v":600000},300000,0,300000,0,0,0,0,603600,604505]
["3222","Materijal i sirovine",600000,300000,0,300000,null,null,null,null,603600,604505]
[null,"Aktivnost A100006. NAKNADE ZA RAD ŠKOLSKIH ODBORA",{"$f":"C54","v":45000},{"$f":"D54","v":45000},0,0,0,0,0,0,45270,45338]
[32,"Materijalni rashodi",{"$f":"C55","v":45000},45000,0,0,0,0,0,0,45270,45338]
["3291","Naknade za rad predstavničkih i izvršnih tijela, povjerenstava i sl.",45000,45000,null,null,null,null,null,null,45270,45338]
[null,"Aktivnost A100007. OSTALE  IZVANNASTAVNE AKTIVNOSTI",{"$f":"C57","v":270000},{"$f":"D57","v":270000},0,0,0,0,0,0,271620,272027]
[32,"Materijalni rashodi",{"$f":"SUM(C58:C59)","v":270000},{"$f":"SUM(D58:D59)","v":270000},0,0,0,0,0,0,271620,272027]
["3231","Usluge telefona, pošte i prijevoza"]
["3299","Ostali nespomenuti rashodi poslovanja",270000,270000,null,null,null,null,null,null,271620,272027]
[null,"Aktivnost A100008. ŠKOLA U PRIRODI",{"$f":"C61","v":60000},{"$f":"D61","v":30000},0,30000,0,0,0,0,60360,60451]
[32,"Materijalni rashodi",{"$f":"C62","v":60000},30000,0,30000,0,0,0,0,60360,60451]
["3299","Ostali nespomenuti rashodi poslovanja",60000,30000,null,30000,null,null,null,null,60360,60451]
[null,"Aktivnost A100010. VIKENDOM U ŠPORTSKE DVORANE",{"$f":"C64","v":45000},{"$f":"D64","v":45000},0,0,0,0,0,0,45270,45338]
[32,"Materijalni rashodi",{"$f":"C65","v":45000},45000,0,0,0,0,0,0,45270,45338]
["3237","Intelektualne i osobne usluge",45000,45000,null,null,null,null,null,null,45270,45338]
[null,"Aktivnost A100011. POMOĆNICI U NASTAVI",{"$f":"C67","v":35000},{"$f":"D67","v":35000},0,0,0,0,0,0,35210,35263]
[32,"Materijalni rashodi",{"$f":"C68","v":35000},35000,0,0,0,0,0,0,35210,35263]
["3237","Intelektualne i osobne usluge",35000,35000,null,null,null,null,null,null,35210,35263]
[null,"Aktivnost A100002.NABAVA BESPLATNIH UDŽBENIKA",{"$f":"C70","v":0},{"$f":"D70","v":0},0,0,0,0,0,0,0,0]
["37","Naknade građanima i kućanstvima na temelju osiguranja i druge naknade",{"$f":"C71","v":0},0,0,0,0,0,0,0,0,0]
[3722,"Naknade građanima i kućanstvima u naravi"]
[null,"Projekt K100005. ODRŽAVANJE I OPREMANJE OSNOVNIH ŠKOLA  ZA POBOLJŠANJE STANDARDA",555000,{"$f":"SUM(D73,D75)","v":550000},5000,0,0,0,0,0,555030,555038]
[32,"Materijalni rashodi",{"$f":"C74","v":550000},{"$f":"D74","v":550000},0,0,0,0,0,0,550000,550000]
["3232","Usluge tekućeg i investicijskog održavanja",550000,550000,null,null,null,null,null,null,550000,550000]
["42","Rashodi za nabavu proizvedene dugotrajne imovine",{"$f":"SUM(C76:C78)","v":5000},{"$f":"SUM(D76:D78)","v":0},5000,0,0,0,0,0,5030,5038]
["4221","Uredska oprema i namještaj"]
["4227","Uređaji, strojevi i oprema za ostale namjene"]
["4241","Knjige ",5000,null,5000,null,null,null,null,null,5030,5038]
[null,"UKUPNO  GLAVA  03 :",{"$f":"SUM(C39,C10)","v":3319040},{"$f":"SUM(D39,D10)","v":2954040},25000,340000,0,0,0,0,3392997,3397261]
[]
[]
[null,null,"KLASA:003-05/15-01/07",null,"M.P.",null,null,null,"Ravnatelj:"]
[".","U Kašini, 30 .prosinca 2015.","UR.BROJ:251-227-03-15-01"]
[]
[null,null,null,null,null,null,null,null,"___________________________________________"]

{"sheet":"OBRAZLOŽENJE","index":3,"n_rows":34,"n_cols":2,"rows_kept":34,"cut":false,"hidden":false,"merged":[[8,0,9,0],[8,1,9,1],[10,0,16,0],[10,1,16,1],[17,0,19,0],[17,1,19,1],[20,0,23,0],[20,1,23,1],[33,0,38,0],[33,1,38,1],[24,0,26,0],[24,1,26,1],[27,0,32,0],[27,1,32,1]]}
["Obrazac Obrazloženja financijskog plana"]
[]
[]
["NAZIV KORISNIKA:","OŠ VUGROVEC - KAŠINA"]
[]
["SAŽETAK DJELOKRUGA: ","OSNOVNOŠKOLSKO OBRAZOVANJE"]
[]
[]
["1. NAZIV PROGRAMA","osnovnoškolsko obrazovanje"]
[]
["2.  CILJEVI (što se programom želi postići)","Škola provodi osnovnoškolsko obrazovanje te ovim financijskim planom želi osigurati sredstva za redoviti rad škole uz suvremene oblike poučavanja primjerene potrebama učenika u današnjem okružju."]
[]
[]
[]
[]
[]
[]
["3. NAČIN OSTVARENJA CILJA (kako se nastoji realizirati program, tko je korisnik ili primatelj usluge)","Racionalnim korištenjem sredstava osigurati redovit i uspješan rad škole."]
[]
[]
["4. ZAKONSKE I DRUGE PODLOGE NA KOJIMA SE ZASNIVA PROGRAM","Smjernice Ministarstva financija i ostali pozitivni propisi koji uređuju rad i poslovanje proračunskih korisnika."]
[]
[]
[]
["5. POKAZATELJI REZULTATA NA KOJIMA SE ZASNIVAJU IZRAČUNI I OCJENE POTREBNIH SREDSTAVA ","Izračun se zasniva na kriterijima prema Programu javnih potreba u osnovnom odgoju i obrazovanju Grada Zagreba, a suklađen je s potrebama škole vezano uz provođenje redovitog programa rada škole, Školskog kurikuluma, Godišnjeg plana i programa rada škole uz svakodnevno i redovito podmirivanje nastalih obveza."]
[]
[]
["6. RAZLOG ODSTUPANJA OD PROŠLOGODIŠNJIH PROJEKCIJA","Nema većih odstupanja od prošlogodišnjih projekcija."]
[]
[]
[]
[]
[]
["7. POKAZATELJI USPJEŠNOSTI: ","Godišnje financijsko izvješće pokazuje uspješnost planiranja potrebnih sredstava."]